fUST/lending_fUST_20260115
["ID","MTS","AMOUNT","RATE_DAILY","PERIOD"]
[401973572,1768431043930,-1500.0,0.00015864,2]
[401973574,1768431043939,-269.0,0.00015876,2]
[401973576,1768431043948,-563.27896724,0.0001589,2]
[401973578,1768431043958,-2500.0,0.0001589,2]
[401973580,1768431043967,-559.4878042,0.0001589,2]
[401973583,1768431043977,-2500.0,0.0001589,2]
[401973584,1768431043987,-1211.66599686,0.0001589,2]
[401973587,1768431043997,-2500.0,0.0001589,2]
[401973589,1768431044007,-2500.0,0.0001589,2]
[401973590,1768431044016,-2500.0,0.0001589,2]
[401973592,1768431044026,-2500.0,0.0001589,2]
[401973595,1768431044036,-1692.29139729,0.00016012,2]
[401973597,1768431044045,-3000.0,0.00016012,2]
[401973599,1768431044055,-3000.0,0.00016012,2]
[401973601,1768431044066,-913.29712103,0.00016012,2]
[401973603,1768431044075,-3000.0,0.00016012,2]
[401973605,1768431044087,-1171.14126243,0.00016012,2]
[401973606,1768431044098,-3000.0,0.00016012,2]
[401973609,1768431044108,-2916.13825137,0.00016012,2]
[401973611,1768431044118,-3000.0,0.00016012,2]
[401973613,1768431044129,-3000.0,0.00016012,2]
[401973615,1768431044139,-3000.0,0.00016012,2]
[401973617,1768431044149,-1600.0,0.00016164,2]
[401973619,1768431044160,-823.0,0.00016292,2]
[401973621,1768431044170,-151.0,0.000163,2]
[401973623,1768431044180,-487.96624934,0.00016327,2]
[401973625,1768431044191,-1800.0,0.00016412,2]
[401973627,1768431044200,-500.0,0.00016438,2]
[401973629,1768431044210,-182.41528888,0.00016438,2]
[401973631,1768431044220,-500.0,0.00016438,2]
[401973633,1768431044230,-500.0,0.00016438,2]
[401973635,1768431044240,-500.0,0.00016438,2]
[401973637,1768431044250,-595.30780858,0.00016438,2]
[401973639,1768431044259,-500.0,0.00016438,2]
[401973641,1768431044268,-200.0,0.00016438,2]
[401973643,1768431044279,-164.26686219,0.00016438,2]
[401973645,1768431044288,-1044.67516775,0.00016438,2]
[401973647,1768431044298,-3000.0,0.00016438,2]
[401973649,1768431044307,-1319.68437302,0.00016438,2]
[401973651,1768431044317,-3000.0,0.00016438,2]
[401973653,1768431044326,-3000.0,0.00016438,2]
[401973655,1768431044336,-3000.0,0.00016438,2]
[401973657,1768431044345,-260.29560408,0.00016438,2]
[401973659,1768431044356,-200.0,0.00016473,2]
[401973661,1768431044367,-3500.0,0.0001656,2]
[401973664,1768431044377,-3500.0,0.0001656,2]
[401973665,1768431044387,-3500.0,0.0001656,2]
[401973668,1768431044397,-3500.0,0.0001656,2]
[401973669,1768431044407,-3500.0,0.0001656,2]
[401973671,1768431044417,-3500.0,0.0001656,2]
[401973673,1768431044427,-3500.0,0.0001656,2]
[401973676,1768431044438,-303.94107518,0.00016596,8]
[401973677,1768431044449,-151.0,0.000167,2]
[401973679,1768431044459,-2100.0,0.0001696,2]
[401973681,1768431044470,-270.0,0.00016986,2]
[401973683,1768431044479,-2087.94374426,0.00016986,2]
[401973685,1768431044488,-3500.0,0.00016986,2]
[401973687,1768431044497,-3500.0,0.00016986,2]
[401973689,1768431044507,-3500.0,0.00016986,2]
[401973691,1768431044516,-1000.0,0.00017069,2]
[401973693,1768431044526,-2917.48910491,0.00017108,2]
[401973695,1768431044535,-3392.75982988,0.00017108,2]
[401973697,1768431044545,-4000.0,0.00017108,2]
[401973699,1768431044554,-4000.0,0.00017108,2]
[401973701,1768431044563,-4000.0,0.00017108,2]
[401973703,1768431044573,-4000.0,0.00017108,2]
[401973705,1768431044582,-4000.0,0.00017108,2]
[401973707,1768431044591,-151.0,0.000172,2]
[401973709,1768431044601,-2400.0,0.0001726,2]
[401973711,1768431044610,-5000.0,0.00017412,2]
[401973713,1768431044620,-2400.0,0.00017508,2]
[401973715,1768431044629,-174.48080933,0.00017534,2]
[401973717,1768431044638,-400.0,0.00017534,2]
[401973719,1768431044648,-4000.0,0.00017534,2]
[401973721,1768431044657,-4000.0,0.00017534,2]
[401973723,1768431044668,-4000.0,0.00017534,2]
[401973725,1768431044678,-151.0,0.000176,2]
[401973727,1768431044687,-2699.34641428,0.00017656,2]
[401973729,1768431044696,-4500.0,0.00017656,2]
[401973731,1768431044706,-4500.0,0.00017656,2]
[401973733,1768431044716,-4500.0,0.00017656,2]
[401973735,1768431044725,-4500.0,0.00017656,2]
[401973737,1768431044734,-400.30202268,0.00017842,2]
[401973753,1768431044880,-1152.0,0.00017879,2]
[401973755,1768431044889,-303.94107518,0.00018052,14]
[401973757,1768431044899,-2700.0,0.00018056,2]
[401973759,1768431044908,-4500.0,0.00018082,2]
[401973761,1768431044918,-4500.0,0.00018082,2]
[401973763,1768431044928,-4500.0,0.00018082,2]
[401973765,1768431044937,-5000.0,0.00018204,2]
[401973767,1768431044947,-5000.0,0.00018204,2]
[401973769,1768431044957,-5000.0,0.00018204,2]
[401973771,1768431044966,-5000.0,0.00018204,2]
[401973773,1768431044976,-1041.66666667,0.00018273,2]
[401973775,1768431044986,-7165.70883616,0.00018322,2]
[401973777,1768431044995,-552.55001764,0.00018327,2]
[401973779,1768431045004,-3200.0,0.00018356,2]
[401973781,1768431045014,-151.0,0.000185,2]
[401973783,1768431045023,-3000.0,0.00018604,2]
[401973785,1768431045033,-600.0,0.0001863,2]
[401973787,1768431045043,-5000.0,0.0001863,2]
[401973789,1768431045052,-5000.0,0.0001863,2]
[401973791,1768431045062,-5000.0,0.0001863,2]
[401973793,1768431045072,-5500.0,0.00018752,2]
[401973795,1768431045082,-5500.0,0.00018752,2]
[401973797,1768431045091,-4588.14205975,0.00018752,2]
[401973799,1768431045100,-5500.0,0.00018752,2]
[401973801,1768431045111,-1000.0,0.00018776,2]
[401973803,1768431045120,-244.0,0.00018776,2]
[401973805,1768431045129,-714.6,0.00018838,2]
[401973807,1768431045141,-734.352982,0.00018838,7]
[401973809,1768431045151,-2291.150551,0.00018838,7]
[401973811,1768431045160,-2777.6351,0.00018863,2]
[401973813,1768431045169,-114877.172992,0.000189,7]
[401973815,1768431045179,-303.10001603,0.000189,2]
[401973817,1768431045188,-5727.876376,0.00019089,7]
[401973819,1768431045198,-303.10001603,0.00019089,2]
[401973821,1768431045208,-14319.69094,0.00019152,7]
[401973823,1768431045217,-27681.246504,0.00019152,7]
[401973825,1768431045227,-1835.882456,0.00019152,7]
[401973827,1768431045237,-3300.0,0.00019152,2]
[401973829,1768431045247,-180.72597661,0.00019178,2]
[401973831,1768431045256,-5500.0,0.00019178,2]
[401973833,1768431045266,-5500.0,0.00019178,2]
[401973835,1768431045276,-5500.0,0.00019178,2]
[401973837,1768431045286,-17231.575949,0.00019178,7]
[401973839,1768431045295,-223.89,0.000192,2]
[401973841,1768431045305,-3915.7,0.000192,2]
[401973843,1768431045314,-196.5,0.000192,2]
[401973845,1768431045323,-29951.84,0.000192,2]
[401973847,1768431045332,-167.77,0.000192,2]
[401973849,1768431045342,-4589.70614,0.000192,7]
[401973851,1768431045351,-303.10001603,0.00019278,2]
[401973853,1768431045361,-4040.44472477,0.000193,2]
[401973855,1768431045373,-6000.0,0.000193,2]
[401973857,1768431045383,-6000.0,0.000193,2]
[401973859,1768431045395,-151.0,0.000194,2]
[401973862,1768431045406,-307.61092211,0.00019452,2]
[401973864,1768431045417,-303.10001603,0.00019467,2]
[401973866,1768431045426,-303.94107518,0.00019507,19]
[401973868,1768431045436,-1613.0,0.0001962,2]
[401973870,1768431045446,-303.10001603,0.00019656,2]
[401973872,1768431045456,-156.20051056,0.000197,2]
[401973874,1768431045467,-800.0,0.00019726,2]
[401973876,1768431045476,-250.0,0.00019726,2]
[401973878,1768431045487,-6000.0,0.00019726,2]
[401973881,1768431045507,-6000.0,0.00019726,2]
[401973883,1768431045519,-6000.0,0.00019726,2]
[401973886,1768431045529,-250.0,0.00019726,2]
[401973888,1768431045539,-402.28551192,0.00019748,2]
[401973890,1768431045549,-69203.11626,0.00019845,7]
[401973892,1768431045559,-454.65002405,0.00019845,4]
[401973894,1768431045569,-35799.227351,0.00019848,7]
[401973896,1768431045581,-6500.0,0.00019848,2]
[401973898,1768431045592,-6500.0,0.00019848,2]
[401973901,1768431045602,-714.6,0.00019865,2]
[401973903,1768431045612,-155.33,0.00019944,2]
[401973905,1768431045622,-300.0,0.0002,2]
[401973907,1768431045632,-151.55000802,0.0002,2]
[401973909,1768431045643,-454.65002405,0.00020034,4]
[401973911,1768431045653,-155.5739919,0.00020188,5]
[401973913,1768431045663,-454.65002405,0.00020223,4]
[401973915,1768431045673,-200.91058964,0.00020274,2]
[401973917,1768431045684,-4402.72600724,0.00020274,2]
[401973919,1768431045694,-3946.58201638,0.00020274,2]
[401973922,1768431045704,-6500.0,0.00020274,2]
[401973924,1768431045713,-350.0,0.00020274,2]
[401973926,1768431045722,-151.0,0.000203,3]
[401973928,1768431045732,-617.13378593,0.00020327,2]
[401973930,1768431045742,-3073.24025849,0.00020396,2]
[401973932,1768431045752,-5683.87260271,0.00020396,2]
[401973934,1768431045762,-454.65002405,0.00020412,4]
[401973936,1768431045772,-223.89,0.000206,2]
[401973938,1768431045782,-3915.7,0.000206,2]
[401973940,1768431045792,-196.5,0.000206,2]
[401973942,1768431045802,-11047.190802,0.000206,7]
[401973944,1768431045811,-1498.239018,0.000206,2]
[401973946,1768431045822,-1498.239018,0.000206,2]
[401973948,1768431045832,-1498.239018,0.000206,2]
[401973950,1768431045842,-1498.239018,0.000206,2]
[401973952,1768431045853,-151.0,0.00020601,2]
[401973955,1768431045862,-151.0,0.00020601,2]
[401973957,1768431045872,-151.0,0.00020601,2]
[401973959,1768431045882,-151.0,0.00020601,2]
[401973961,1768431045893,-454.65002399,0.00020601,4]
[401973963,1768431045902,-1000.0,0.00020654,2]
[401973965,1768431045914,-492.0,0.00020654,2]
[401973967,1768431045925,-151.0,0.00020721,2]
[401973969,1768431045934,-151.0,0.00020721,2]
[401973971,1768431045944,-1000.0,0.00020822,2]
[401973973,1768431045953,-7000.0,0.00020822,2]
[401973975,1768431045964,-450.0,0.00020822,2]
[401973977,1768431045973,-714.6,0.00020892,2]
[401973979,1768431045983,-7165.70883616,0.00020896,2]
[401973981,1768431045993,-303.94107518,0.00020963,25]
[401973983,1768431046002,-500.0,0.00020973,2]
[401973986,1768431046012,-500.0,0.00020973,2]
[401973988,1768431046021,-500.0,0.00020973,2]
[401973990,1768431046031,-350.00260819,0.00020973,2]
[401973992,1768431046040,-9661.0,0.00021,2]
[401973994,1768431046050,-29951.84,0.00021,2]
[401973996,1768431046062,-795.987765,0.00021,2]
[401973998,1768431046072,-795.987765,0.00021,2]
[401974000,1768431046081,-795.987765,0.00021,2]
[401974002,1768431046091,-795.987765,0.00021,2]
[401974004,1768431046102,-151.0,0.000211,4]
[401974006,1768431046111,-48071.102869,0.000211,7]
[401974008,1768431046121,-7500.0,0.0002137,2]
[401974010,1768431046130,-550.0,0.0002137,2]
[401974012,1768431046142,-159.42428313,0.00021393,5]
[401974014,1768431046151,-2258.0,0.00021531,2]
[401974016,1768431046161,-305.980409,0.00021664,7]
[401974018,1768431046171,-954.646063,0.00021664,7]
[401974020,1768431046180,-47865.488746,0.00021735,7]
[401974022,1768431046189,-155.33,0.00021915,2]
[401974024,1768431046199,-151.0,0.00021918,2]
[401974026,1768431046208,-151.0,0.00021918,2]
[401974028,1768431046218,-151.0,0.00021918,2]
[401974029,1768431046227,-191.596972,0.00021918,2]
[401974030,1768431046236,-191.596972,0.00021918,2]
[401974031,1768431046245,-191.596972,0.00021918,2]
[401974032,1768431046254,-151.0,0.00021918,2]
[401974033,1768431046265,-191.596972,0.00021918,2]
[401974034,1768431046274,-910.867725,0.00021918,2]
[401974036,1768431046283,-910.867725,0.00021918,2]
[401974038,1768431046292,-910.867725,0.00021918,2]
[401974040,1768431046301,-910.867725,0.00021918,2]
[401974042,1768431046311,-151.0,0.00021918,2]
[401974044,1768431046320,-151.0,0.00021918,2]
[401974046,1768431046329,-151.0,0.00021918,2]
[401974048,1768431046339,-151.0,0.00021918,2]
[401974050,1768431046348,-206.655593,0.00021918,2]
[401974052,1768431046357,-206.655593,0.00021918,2]
[401974054,1768431046366,-206.655593,0.00021918,2]
[401974056,1768431046375,-206.655593,0.00021918,2]
[401974058,1768431046384,-151.0,0.00021918,2]
[401974060,1768431046394,-151.0,0.00021918,2]
[401974062,1768431046403,-151.0,0.00021918,2]
[401974064,1768431046413,-285.638493,0.00021918,2]
[401974066,1768431046422,-282.150442,0.00021918,2]
[401974068,1768431046432,-282.150442,0.00021918,2]
[401974070,1768431046442,-151.0,0.00021918,2]
[401974072,1768431046451,-282.150442,0.00021918,2]
[401974074,1768431046462,-282.150442,0.00021918,2]
[401974076,1768431046472,-151.0,0.00021918,2]
[401974078,1768431046481,-151.0,0.00021918,2]
[401974081,1768431046490,-151.0,0.00021918,2]
[401974083,1768431046499,-151.0,0.00021918,2]
[401974084,1768431046508,-151.0,0.00021918,2]
[401974087,1768431046518,-151.0,0.00021918,2]
[401974088,1768431046527,-167.014609,0.00021918,2]
[401974090,1768431046536,-222.382788,0.00021918,2]
[401974093,1768431046546,-151.0,0.00021918,2]
[401974094,1768431046555,-152.430447,0.00021918,2]
[401974097,1768431046564,-207.237772,0.00021918,2]
[401974099,1768431046574,-207.237772,0.00021918,2]
[401974101,1768431046583,-207.237772,0.00021918,2]
[401974103,1768431046593,-207.237772,0.00021918,2]
[401974105,1768431046603,-293.503999,0.00021918,2]
[401974107,1768431046612,-293.503999,0.00021918,2]
[401974109,1768431046623,-293.503999,0.00021918,2]
[401974111,1768431046633,-293.503999,0.00021918,2]
[401974113,1768431046642,-151.0,0.00021918,2]
[401974115,1768431046652,-582.913993,0.00021918,2]
[401974117,1768431046662,-582.913993,0.00021918,2]
[401974119,1768431046672,-582.913993,0.00021918,2]
[401974121,1768431046681,-582.913993,0.00021918,2]
[401974123,1768431046691,-151.0,0.00021918,2]
[401974125,1768431046700,-208.349086,0.00021918,2]
[401974127,1768431046710,-151.0,0.00021918,2]
[401974129,1768431046719,-275.55471384,0.00021918,2]
[401974131,1768431046728,-151.0,0.00021918,2]
[401974133,1768431046738,-151.0,0.00021918,2]
[401974135,1768431046747,-151.0,0.00021918,2]
[401974137,1768431046756,-151.0,0.00021918,2]
[401974139,1768431046766,-151.0,0.00021918,2]
[401974141,1768431046775,-151.0,0.00021918,2]
[401974143,1768431046785,-847.432412,0.00021918,2]
[401974145,1768431046794,-847.432412,0.00021918,2]
[401974147,1768431046804,-847.432412,0.00021918,2]
[401974149,1768431046813,-847.432412,0.00021918,2]
[401974151,1768431046823,-151.0,0.00021918,2]
[401974153,1768431046832,-1770.408967,0.00021918,2]
[401974155,1768431046842,-1770.408967,0.00021918,2]
[401974157,1768431046852,-1770.408967,0.00021918,2]
[401974159,1768431046862,-1770.408967,0.00021918,2]
[401974161,1768431046872,-151.0,0.00021918,2]
[401974163,1768431046882,-263.265987,0.00021918,2]
[401974166,1768431046893,-263.265987,0.00021918,2]
[401974168,1768431046905,-263.265987,0.00021918,2]
[401974170,1768431046915,-151.0,0.00021918,2]
[401974172,1768431046924,-263.265987,0.00021918,2]
[401974174,1768431046933,-151.0,0.00021918,2]
[401974176,1768431046943,-151.0,0.00021918,2]
[401974178,1768431046952,-151.0,0.00021918,2]
[401974180,1768431046961,-151.0,0.00021918,2]
[401974182,1768431046971,-1200.0,0.00021918,2]
[401974184,1768431046980,-8000.0,0.00021918,2]
[401974186,1768431046990,-650.0,0.00021918,2]
[401974188,1768431046999,-151.0,0.00021918,2]
[401974190,1768431047008,-714.6,0.00021919,2]
[401974192,1768431047018,-2322.78,0.00022,7]
[401974194,1768431047031,-7179.823312,0.00022055,30]
[401974197,1768431047041,-223.89,0.000223,7]
[401974199,1768431047050,-3915.7,0.000223,14]
[401974201,1768431047062,-196.5,0.000223,7]
[401974203,1768431047073,-681.71755423,0.00022327,2]
[401974205,1768431047083,-232.46843313,0.00022419,30]
[401974207,1768431047093,-200.0,0.00022466,2]
[401974209,1768431047102,-864.52541442,0.00022466,2]
[401974211,1768431047113,-750.0,0.00022466,2]
[401974213,1768431047122,-297.0,0.00022523,2]
[401974215,1768431047133,-1000.0,0.00022719,10]
[401974217,1768431047142,-791.0,0.00022719,10]
[401974219,1768431047151,-384.0,0.00022788,2]
[401974221,1768431047160,-167.77,0.000228,7]
[401974223,1768431047171,-714.6,0.00022946,2]
[401974225,1768431047181,-2953.11393828,0.00022964,2]
[401974227,1768431047191,-1400.0,0.00023014,2]
[401974230,1768431047201,-260.92385342,0.00023014,2]
[401974231,1768431047210,-850.0,0.00023014,2]
[401974234,1768431047219,-165.45964144,0.00023041,9]
[401974236,1768431047228,-2953.11393828,0.00023112,2]
[401974238,1768431047238,-1600.0,0.00023139,2]
[401974240,1768431047248,-800.0,0.00023145,2]
[401974242,1768431047257,-182.95072115,0.0002315,2]
[401974244,1768431047267,-900.0,0.00023168,2]
[401974246,1768431047276,-10000.0,0.0002318,2]
[401974248,1768431047286,-10000.0,0.0002318,2]
[401974250,1768431047295,-10000.0,0.0002318,2]
[401974260,1768431047375,-10000.0,0.0002318,2]
[401974262,1768431047384,-4343.48,0.0002318,2]
[401974264,1768431047393,-10000.0,0.0002318,2]
[401974266,1768431047402,-4839.12,0.0002318,2]
[401974268,1768431047411,-293.85068442,0.00023181,2]
[401974270,1768431047421,-800.0,0.00023191,2]
[401974272,1768431047430,-445.34305753,0.00023197,2]
[401974274,1768431047439,-500.0,0.00023221,2]
[401974276,1768431047448,-800.0,0.00023221,2]
[401974278,1768431047457,-1600.0,0.00023227,2]
[401974280,1768431047467,-500.0,0.00023237,2]
[401974282,1768431047476,-500.0,0.00023238,2]
[401974284,1768431047486,-800.0,0.00023239,2]
[401974286,1768431047495,-500.0,0.00023276,2]
[401974288,1768431047504,-1600.0,0.00023281,2]
[401974290,1768431047513,-200.0,0.00023288,7]
[401974292,1768431047523,-260.0,0.00023288,7]
[401974294,1768431047531,-29951.84,0.000233,2]
[401974296,1768431047541,-900.0,0.00023331,2]
[401974298,1768431047550,-800.0,0.00023333,2]
[401974300,1768431047559,-445.34305753,0.00023337,9]
[401974302,1768431047568,-900.0,0.00023377,2]
[401974304,1768431047578,-900.0,0.00023398,2]
[401974306,1768431047587,-1600.0,0.00023403,2]
[401974308,1768431047596,-1549.64,0.00023415,2]
[401974310,1768431047605,-800.0,0.00023419,2]
[401974312,1768431047614,-7165.70883616,0.0002347,2]
[401974314,1768431047625,-445.34305753,0.00023476,17]
[401974316,1768431047634,-4880.93865903,0.00023486,2]
[401974318,1768431047644,-2322.78,0.000235,7]
[401974320,1768431047654,-2953.11393828,0.00023515,2]
[401974322,1768431047663,-500.0,0.00023562,2]
[401974324,1768431047672,-500.0,0.00023564,2]
[401974326,1768431047681,-1600.0,0.00023566,2]
[401974328,1768431047691,-791.34915639,0.00023568,2]
[401974330,1768431047700,-63866.0697921,0.0002357,2]
[401974332,1768431047709,-151.0,0.0002357,2]
[401974334,1768431047719,-151.0,0.0002357,2]
[401974336,1768431047728,-151.0,0.0002357,2]
[401974338,1768431047737,-800.0,0.00023584,2]
[401974340,1768431047746,-234.0,0.00023589,10]
[401974342,1768431047755,-445.34305753,0.00023616,25]
[401974344,1768431047767,-3162.0,0.00023629,2]
[401974346,1768431047777,-900.0,0.00023634,2]
[401974348,1768431047787,-800.0,0.00023674,2]
[401974350,1768431047796,-800.0,0.00023691,2]
[401974352,1768431047806,-223.89,0.000237,7]
[401974354,1768431047815,-3915.7,0.000237,14]
[401974356,1768431047825,-196.5,0.000237,7]
[401974358,1768431047834,-900.0,0.0002371,2]
[401974360,1768431047843,-800.0,0.00023714,2]
[401974362,1768431047852,-1600.0,0.00023717,2]
[401974364,1768431047861,-1600.0,0.00023732,2]
[401974366,1768431047871,-445.34305753,0.00023755,32]
[401974368,1768431047881,-900.0,0.00023762,2]
[401974370,1768431047890,-800.0,0.00023782,2]
[401974372,1768431047899,-1600.0,0.00023799,2]
[401974374,1768431047908,-2953.11393828,0.000238,2]
[401974376,1768431047918,-1600.0,0.00023801,2]
[401974378,1768431047927,-900.0,0.00023817,2]
[401974380,1768431047936,-800.0,0.00023839,2]
[401974382,1768431047945,-500.0,0.00023847,2]
[401974384,1768431047955,-1600.0,0.00023859,2]
[401974386,1768431047964,-232.46843313,0.00023875,43]
[401974388,1768431047974,-445.34305753,0.00023895,40]
[401974390,1768431047985,-1600.0,0.0002393,2]
[401974392,1768431047996,-1600.0,0.00023948,2]
[401974394,1768431048005,-1600.0,0.00023959,2]
[401974396,1768431048014,-2953.11393828,0.00023961,2]
[401974398,1768431048024,-1600.0,0.00023969,2]
[401974400,1768431048034,-714.6,0.00023973,2]
[401974402,1768431048043,-800.0,0.00023977,2]
[401974404,1768431048052,-500.0,0.0002398,2]
[401974406,1768431048064,-1041.66666667,0.00024,7]
[401974408,1768431048073,-3000.3969127,0.00024,2]
[401974410,1768431048082,-207.11,0.0002401,2]
[401974412,1768431048092,-500.0,0.00024028,2]
[401974414,1768431048101,-900.0,0.00024028,2]
[401974416,1768431048110,-900.0,0.0002403,2]
[401974418,1768431048119,-445.34305753,0.00024034,48]
[401974420,1768431048129,-900.0,0.00024065,2]
[401974422,1768431048139,-900.0,0.0002408,2]
[401974424,1768431048148,-800.0,0.00024096,2]
[401974426,1768431048158,-401.4141805,0.0002411,2]
[401974428,1768431048169,-1600.0,0.00024115,2]
[401974430,1768431048178,-1082.98429516,0.00024118,2]
[401974432,1768431048187,-900.0,0.00024123,2]
[401974434,1768431048200,-190.0,0.00024133,2]
[401974436,1768431048209,-800.0,0.00024144,2]
[401974438,1768431048219,-900.0,0.0002415,2]
[401974441,1768431048230,-445.34305753,0.00024174,56]
[401974443,1768431048239,-151.0,0.00024178,2]
[401974445,1768431048248,-151.0,0.00024178,2]
[401974447,1768431048257,-1600.0,0.00024196,2]
[401974449,1768431048266,-800.0,0.00024256,2]
[401974451,1768431048275,-151.0,0.00024267,2]
[401974453,1768431048283,-225.938304,0.00024267,2]
[401974455,1768431048293,-151.0,0.00024267,2]
[401974457,1768431048302,-151.0,0.00024267,2]
[401974458,1768431048311,-151.0,0.00024267,2]
[401974460,1768431048320,-151.0,0.00024267,2]
[401974463,1768431048329,-151.0,0.00024267,2]
[401974465,1768431048338,-151.0,0.00024267,2]
[401974466,1768431048349,-151.0,0.00024267,2]
[401974469,1768431048359,-151.0,0.00024267,2]
[401974471,1768431048372,-151.0,0.00024267,2]
[401974473,1768431048381,-186.701041,0.00024267,2]
[401974475,1768431048390,-186.591978,0.00024267,2]
[401974477,1768431048399,-186.591978,0.00024267,2]
[401974479,1768431048408,-186.591978,0.00024267,2]
[401974481,1768431048417,-186.591978,0.00024267,2]
[401974482,1768431048425,-240.755518,0.00024267,2]
[401974484,1768431048436,-151.0,0.00024267,2]
[401974486,1768431048445,-151.0,0.00024267,2]
[401974489,1768431048454,-151.0,0.00024267,2]
[401974490,1768431048463,-813.50644317,0.00024276,17]
[401974493,1768431048472,-900.0,0.00024286,2]
[401974494,1768431048482,-800.0,0.00024291,2]
[401974496,1768431048492,-522.88356834,0.00024308,2]
[401974499,1768431048501,-445.34305753,0.00024313,63]
[401974501,1768431048511,-746.30132253,0.00024327,2]
[401974503,1768431048520,-800.0,0.00024372,2]
[401974504,1768431048529,-800.0,0.00024374,2]
[401974506,1768431048539,-800.0,0.00024389,2]
[401974508,1768431048548,-800.0,0.00024392,2]
[401974510,1768431048558,-500.0,0.00024402,2]
[401974513,1768431048567,-1600.0,0.00024426,2]
[401974515,1768431048576,-500.0,0.00024445,2]
[401974517,1768431048586,-800.0,0.00024449,2]
[401974519,1768431048595,-445.34305753,0.00024453,71]
[401974520,1768431048605,-1600.0,0.00024469,2]
[401974522,1768431048614,-800.0,0.00024476,2]
[401974525,1768431048624,-500.0,0.00024481,2]
[401974526,1768431048634,-900.0,0.0002449,2]
[401974528,1768431048643,-29951.84,0.000245,2]
[401974530,1768431048652,-2322.78,0.000245,7]
[401974532,1768431048662,-593.168376,0.000245,2]
[401974534,1768431048671,-593.168376,0.000245,2]
[401974536,1768431048680,-151.0,0.000245,2]
[401974538,1768431048690,-151.0,0.000245,2]
[401974540,1768431048699,-593.168376,0.000245,2]
[401974542,1768431048709,-151.0,0.000245,2]
[401974545,1768431048721,-593.168376,0.000245,2]
[401974547,1768431048730,-151.0,0.000245,2]
[401974549,1768431048739,-151.0,0.000245,2]
[401974551,1768431048750,-151.0,0.000245,2]
[401974552,1768431048760,-151.0,0.000245,2]
[401974554,1768431048769,-151.0,0.000245,2]
[401974556,1768431048779,-1600.0,0.00024517,2]
[401974558,1768431048788,-180.23791405,0.00024524,2]
[401974560,1768431048798,-500.0,0.00024574,2]
[401974562,1768431048807,-445.34305753,0.00024592,79]
[401974564,1768431048816,-900.0,0.00024626,2]
[401974566,1768431048826,-151.0,0.00024635,2]
[401974568,1768431048835,-151.0,0.00024635,2]
[401974570,1768431048845,-191.596972,0.00024635,2]
[401974572,1768431048854,-191.596972,0.00024635,2]
[401974574,1768431048864,-191.596972,0.00024635,2]
[401974576,1768431048873,-191.596972,0.00024635,2]
[401974578,1768431048884,-910.867725,0.00024635,2]
[401974580,1768431048894,-910.867725,0.00024635,2]
[401974582,1768431048903,-151.0,0.00024635,2]
[401974584,1768431048912,-910.867725,0.00024635,2]
[401974586,1768431048922,-910.867725,0.00024635,2]
[401974588,1768431048931,-151.0,0.00024635,2]
[401974590,1768431048940,-151.0,0.00024635,2]
[401974592,1768431048950,-151.0,0.00024635,2]
[401974594,1768431048961,-151.0,0.00024635,2]
[401974596,1768431048970,-171.590908,0.00024635,2]
[401974598,1768431048979,-151.0,0.00024635,2]